fUSD/lending_fUSD_20260221
["ID","MTS","AMOUNT","RATE_DAILY","PERIOD"]
[406271322,1771678069035,-5000.01,0.00014949,2]
[406271323,1771678069143,-5000.01,0.00014949,2]
[406271324,1771678069277,-5000.01,0.00014949,2]
[406271325,1771678069467,-5000.01,0.00014949,2]
[406271326,1771678072805,-8613.31194191,0.00014949,2]
[406271327,1771678072900,-10000.01,0.00014949,2]
[406271328,1771678075592,-1744.15505085,0.00014949,2]
[406271329,1771678097091,-10000.01,0.00014923,2]
[406271330,1771678097367,-10000.01,0.00014923,2]
[406271331,1771678105852,-10000.01,0.00014923,2]
[406271332,1771678105967,-10000.01,0.00014923,2]
[406271333,1771678146005,169.43,0.00011854,2]
[406271334,1771678146200,169.43,0.00013336,2]
[406271335,1771678231301,-7251.53,0.00014818,2]
[406271336,1771678231311,-169.43,0.00014818,2]
[406271337,1771678231320,-150.65,0.000149,2]
[406271338,1771678231330,-193.0,0.00014922,2]
[406271339,1771678231340,-1200.0,0.00014922,2]
[406271340,1771678231349,-10160.36581632,0.00014923,2]
[406271341,1771678231360,-428.83006423,0.00014923,2]
[406271342,1771678231371,-437.83915975,0.00014923,2]
[406271343,1771678231385,-969.80549567,0.00014923,2]
[406271350,1771678237306,-1051.74850456,0.00014923,2]
[406271351,1771678237361,-368.43019988,0.00014923,2]
[406271352,1771678237372,-79419.58075959,0.00014923,2]
[406271353,1771678237384,-150.0,0.00014976,2]
[406271354,1771678237393,-500.57029543,0.00015173,2]
[406271355,1771678237402,-501.37835228,0.00015173,2]
[406271356,1771678237412,-162.93997784,0.00015173,2]
[406271357,1771678237423,-501.05660533,0.00015173,2]
[406271358,1771678237439,-166.88843163,0.00015173,2]
[406271359,1771678237454,-170.25855027,0.00015173,2]
[406271360,1771678237463,-230.31122448,0.00015173,2]
[406271361,1771678237472,-590.39410538,0.00015173,2]
[406271362,1771678237482,-500.49256887,0.00015173,2]
[406271363,1771678237491,-167.41603795,0.00015173,2]
[406271364,1771678237500,-500.0,0.00015173,2]
[406271365,1771678237509,-500.18211712,0.00015173,2]
[406271366,1771678237519,-500.0,0.00015173,2]
[406271367,1771678237530,-500.0,0.00015173,2]
[406271368,1771678237539,-500.0,0.00015173,2]
[406271369,1771678237549,-453.19896023,0.00015173,2]
[406271370,1771678237559,-500.0,0.00015173,2]
[406271371,1771678237569,-493.47361044,0.00015173,2]
[406271372,1771678237578,-500.30226838,0.00015173,2]
[406271373,1771678237587,-514.56546432,0.00015173,2]
[406271374,1771678237596,-500.0,0.00015173,2]
[406271375,1771678237605,-500.0,0.00015173,2]
[406271376,1771678237614,-502.63635996,0.00015173,2]
[406271377,1771678237624,-500.8784215,0.00015173,2]
[406271378,1771678237633,-164.4744294,0.00015173,2]
[406271379,1771678237642,-500.0,0.00015459,2]
[406271380,1771678237651,-800.0,0.000155,5]
[406271381,1771678237661,-700.0,0.000155,5]
[406271382,1771678237671,-250.0,0.0001556,2]
[406271383,1771678237680,-300.0,0.0001556,2]
[406271384,1771678237690,-18999.73,0.00015561,2]
[406271385,1771678237699,-1700.0,0.000156,5]
[406271386,1771678237708,-1400.0,0.000156,5]
[406271387,1771678237718,-517.0,0.00015626,2]
[406271388,1771678237727,-305.36296013,0.00015666,2]
[406271389,1771678237736,-500.0,0.00015666,2]
[406271390,1771678237745,-500.0,0.00015666,2]
[406271391,1771678237754,-348.04746549,0.00015666,2]
[406271392,1771678237763,-670.37591543,0.00015666,2]
[406271393,1771678237773,-582.76334827,0.00015666,2]
[406271394,1771678237782,-670.37591543,0.00015666,2]
[406271395,1771678237791,-500.0,0.00015666,2]
[406271396,1771678237800,-500.0,0.00015666,2]
[406271397,1771678237809,-670.37591543,0.00015666,2]
[406271398,1771678237818,-173.55518088,0.00015666,2]
[406271399,1771678237827,-670.37591543,0.00015666,2]
[406271400,1771678237836,-670.37591543,0.00015666,2]
[406271401,1771678237846,-670.37591543,0.00015666,2]
[406271402,1771678237855,-670.37591543,0.00015666,2]
[406271403,1771678237865,-670.37591543,0.00015666,2]
[406271404,1771678237874,-670.37591543,0.00015666,2]
[406271405,1771678237884,-670.37591543,0.00015666,2]
[406271406,1771678237894,-670.37591543,0.00015666,2]
[406271407,1771678237903,-670.37591543,0.00015666,2]
[406271408,1771678237912,-670.37591543,0.00015666,2]
[406271409,1771678237923,-670.37591543,0.00015666,2]
[406271410,1771678237932,-670.37591543,0.00015666,2]
[406271411,1771678237943,-670.37591543,0.00015666,2]
[406271412,1771678237952,-670.37591543,0.00015666,2]
[406271413,1771678237962,-670.37591543,0.00015666,2]
[406271414,1771678237971,-670.37591543,0.00015666,2]
[406271415,1771678237981,-670.37591543,0.00015666,2]
[406271416,1771678237991,-670.37591543,0.00015666,2]
[406271417,1771678238000,-670.37591543,0.00015666,2]
[406271418,1771678238011,-670.37591543,0.00015666,2]
[406271419,1771678238020,-670.37591543,0.00015666,2]
[406271420,1771678238029,-670.37591543,0.00015666,2]
[406271421,1771678238040,-670.37591543,0.00015666,2]
[406271422,1771678238049,-670.37591543,0.00015666,2]
[406271423,1771678238059,-670.37591543,0.00015666,2]
[406271424,1771678238068,-670.37591543,0.00015666,2]
[406271425,1771678238078,-670.37591543,0.00015666,2]
[406271426,1771678238087,-670.37591543,0.00015666,2]
[406271427,1771678238097,-670.37591543,0.00015666,2]
[406271428,1771678238107,-670.37591543,0.00015666,2]
[406271429,1771678238117,-670.37591543,0.00015666,2]
[406271430,1771678238127,-670.37591543,0.00015666,2]
[406271431,1771678238137,-670.37591543,0.00015666,2]
[406271432,1771678238147,-670.37591543,0.00015666,2]
[406271433,1771678238157,-670.37591543,0.00015666,2]
[406271434,1771678238166,-670.37591543,0.00015666,2]
[406271435,1771678238176,-670.37591543,0.00015666,2]
[406271436,1771678238185,-670.37591543,0.00015666,2]
[406271437,1771678238198,-670.37591543,0.00015666,2]
[406271438,1771678238207,-670.37591543,0.00015666,2]
[406271439,1771678238216,-670.37591543,0.00015666,2]
[406271440,1771678238226,-670.37591543,0.00015666,2]
[406271441,1771678238235,-670.37591543,0.00015666,2]
[406271442,1771678238244,-670.37591543,0.00015666,2]
[406271443,1771678238254,-670.37591543,0.00015666,2]
[406271444,1771678238264,-670.37591543,0.00015666,2]
[406271445,1771678238273,-670.37591543,0.00015666,2]
[406271446,1771678238282,-795.00403802,0.00015667,2]
[406271447,1771678238292,-218.17246063,0.00015667,2]
[406271448,1771678238301,-43895.96309898,0.00015667,2]
[406271449,1771678238310,-2096.65222095,0.00015667,2]
[406271450,1771678238321,-5385.58870498,0.00015667,2]
[406271451,1771678238330,-2600.0,0.000157,5]
[406271452,1771678238339,-2100.0,0.000157,5]
[406271453,1771678238349,-1000.0,0.00015721,2]
[406271454,1771678238358,-1000.0,0.00015721,2]
[406271455,1771678238368,-1000.0,0.00015721,2]
[406271456,1771678238379,-200.0,0.00015731,2]
[406271457,1771678238389,-1546.351,0.00015731,2]
[406271458,1771678238398,-180.037,0.00015731,2]
[406271459,1771678238407,-355.00385536,0.00015756,2]
[406271460,1771678238416,-355.00385536,0.00015756,2]
[406271461,1771678238426,-151.0,0.00015763,2]
[406271462,1771678238435,-151.0,0.00015763,2]
[406271463,1771678238445,-500.0,0.00015765,2]
[406271464,1771678238455,-500.0,0.00015765,2]
[406271465,1771678238464,-294.64759296,0.00015765,2]
[406271466,1771678238474,-428.3258925,0.00015765,2]
[406271467,1771678238483,-500.0,0.00015765,2]
[406271468,1771678238493,-500.0,0.00015765,2]
[406271469,1771678238503,-500.0,0.00015765,2]
[406271470,1771678238512,-500.0,0.00015765,2]
[406271471,1771678238522,-218.85302261,0.00015765,2]
[406271472,1771678238531,-500.0,0.00015765,2]
[406271473,1771678238540,-500.0,0.00015765,2]
[406271474,1771678238549,-500.0,0.00015765,2]
[406271475,1771678238559,-106067.47262341,0.00015766,2]
[406271476,1771678238697,-796.55986639,0.00015766,2]
[406271477,1771678238708,-4932.1520001,0.00015766,2]
[406271478,1771678238719,-2824.62425539,0.00015766,2]
[406271479,1771678238730,-2529753.37252516,0.00015766,2]
[406271480,1771678238742,-11737.65924844,0.00015766,2]
[406271481,1771678238755,-11132.66819799,0.00015766,2]
[406271482,1771678238766,-639.31888652,0.00015766,2]
[406271483,1771678238776,-720.01455073,0.00015766,2]
[406271484,1771678238787,-915.68180285,0.00015766,2]
[406271487,1771678239550,-454.02980961,0.00015766,2]
[406271488,1771678239562,-412.0,0.00015766,2]
[406271489,1771678239605,-829614.44623341,0.00015766,2]
[406271490,1771678239615,-370.49996832,0.00015767,2]
[406271491,1771678239833,-627.5426,0.00015767,2]
[406271492,1771678239843,-201.0,0.00015771,2]
[406271493,1771678239852,-1000.0,0.00015795,2]
[406271494,1771678239862,-9152.8,0.00015796,2]
[406271495,1771678239871,-300.0,0.00015799,2]
[406271496,1771678239880,-150.99,0.000158,2]
[406271497,1771678239891,-299.99,0.000158,2]
[406271498,1771678239899,-9999.99,0.000158,2]
[406271499,1771678239909,-3500.0,0.000158,5]
[406271500,1771678239918,-2800.0,0.000158,5]
[406271501,1771678239927,-500.0,0.00015866,2]
[406271502,1771678239936,-500.0,0.00015866,2]
[406271503,1771678239945,-500.0,0.00015866,2]
[406271504,1771678239954,-500.0,0.00015866,2]
[406271505,1771678239963,-500.0,0.00015866,2]
[406271506,1771678239973,-500.0,0.00015866,2]
[406271507,1771678239982,-500.0,0.00015866,2]
[406271508,1771678239991,-500.0,0.00015866,2]
[406271509,1771678240000,-500.0,0.00015866,2]
[406271510,1771678240009,-500.0,0.00015866,2]
[406271511,1771678240018,-505.36393545,0.00015866,2]
[406271512,1771678240028,-500.0,0.00015866,2]
[406271513,1771678240037,-500.0,0.00015866,2]
[406271514,1771678240046,-500.0,0.00015866,2]
[406271515,1771678240056,-500.0,0.00015866,2]
[406271516,1771678240065,-500.0,0.00015866,2]
[406271517,1771678240074,-500.0,0.00015866,2]
[406271518,1771678240083,-500.0,0.00015866,2]
[406271519,1771678240092,-500.0,0.00015866,2]
[406271520,1771678240101,-500.0,0.00015866,2]
[406271521,1771678240111,-500.0,0.00015866,2]
[406271522,1771678240120,-500.0,0.00015866,2]
[406271523,1771678240129,-274.81553287,0.00015866,2]
[406271524,1771678240138,-500.0,0.00015866,2]
[406271525,1771678240147,-504.39683652,0.00015866,2]
[406271526,1771678240157,-500.0,0.00015866,2]
[406271527,1771678240167,-500.0,0.00015866,2]
[406271528,1771678240177,-500.0,0.00015866,2]
[406271529,1771678240187,-500.0,0.00015866,2]
[406271530,1771678240197,-500.0,0.00015866,2]
[406271531,1771678240207,-500.0,0.00015866,2]
[406271532,1771678240217,-500.0,0.00015866,2]
[406271533,1771678240227,-500.0,0.00015866,2]
[406271534,1771678240238,-500.0,0.00015866,2]
[406271535,1771678240249,-500.0,0.00015866,2]
[406271536,1771678240258,-500.0,0.00015866,2]
[406271537,1771678240268,-500.0,0.00015866,2]
[406271538,1771678240277,-500.0,0.00015866,2]
[406271539,1771678240286,-500.0,0.00015866,2]
[406271540,1771678240296,-3503.8584,0.00015866,2]
[406271541,1771678240306,-32860.742,0.00015867,2]
[406271542,1771678240316,-70994.3266,0.00015867,2]
[406271543,1771678240325,-2500.0,0.00015867,2]
[406271544,1771678240335,-4400.0,0.000159,5]
[406271545,1771678240344,-3500.0,0.000159,5]
[406271546,1771678240353,-43895.96309889,0.00015915,2]
[406271547,1771678240366,-151.0,0.00015958,2]
[406271548,1771678240376,-151.0,0.00015958,2]
[406271549,1771678240388,-151.0,0.00015958,2]
[406271550,1771678240399,-151.0,0.00015958,2]
[406271551,1771678240409,-151.0,0.00015958,2]
[406271552,1771678240419,-151.0,0.00015958,2]
[406271553,1771678240430,-151.0,0.00015958,2]
[406271554,1771678240439,-200.0,0.00015958,2]
[406271555,1771678240449,-151.0,0.00015958,2]
[406271556,1771678240458,-151.0,0.00015958,2]
[406271557,1771678240468,-151.0,0.00015958,2]
[406271558,1771678240477,-151.0,0.00015958,2]
[406271559,1771678240486,-151.0,0.00015958,2]
[406271560,1771678240496,-500.0,0.00015958,2]
[406271561,1771678240505,-500.0,0.00015958,2]
[406271562,1771678240514,-500.0,0.00015958,2]
[406271563,1771678240524,-151.0,0.00015958,2]
[406271564,1771678240533,-500.0,0.00015958,2]
[406271565,1771678240543,-500.0,0.00015958,2]
[406271566,1771678240552,-151.0,0.00015958,2]
[406271567,1771678240561,-500.0,0.00015958,2]
[406271568,1771678240571,-151.0,0.00015958,2]
[406271569,1771678240580,-513.17312972,0.00015958,2]
[406271570,1771678240590,-151.0,0.00015958,2]
[406271571,1771678240599,-151.0,0.00015958,2]
[406271572,1771678240608,-151.0,0.00015958,2]
[406271573,1771678240618,-151.0,0.00015958,2]
[406271574,1771678240626,-151.0,0.00015958,2]
[406271575,1771678240635,-151.0,0.00015958,2]
[406271576,1771678240645,-151.0,0.00015958,2]
[406271577,1771678240654,-151.0,0.00015958,2]
[406271578,1771678240663,-158.28068058,0.00015958,2]
[406271579,1771678240671,-500.0,0.00015966,2]
[406271580,1771678240680,-500.0,0.00015966,2]
[406271581,1771678240690,-500.0,0.00015966,2]
[406271582,1771678240699,-500.0,0.00015966,2]
[406271583,1771678240708,-500.0,0.00015966,2]
[406271584,1771678240718,-452.51165324,0.00015966,2]
[406271585,1771678240727,-545.49,0.00015966,2]
[406271586,1771678240736,-503.02114283,0.00015966,2]
[406271587,1771678240745,-169.88351399,0.00015967,2]
[406271588,1771678240755,-1000.0,0.00015967,2]
[406271589,1771678240764,-520.0,0.00016,2]
[406271590,1771678240773,-500.0,0.00016039,2]
[406271591,1771678240784,-21359.28803387,0.00016085,2]
[406271592,1771678240793,-9999.99,0.00016116,2]
[406271593,1771678240802,-43895.96309889,0.00016163,2]
[406271594,1771678240811,-500.0,0.00016199,2]
[406271595,1771678240820,-500.0,0.00016199,2]
[406271596,1771678240829,-386.77491301,0.00016199,2]
[406271597,1771678240838,-545.49,0.0001624,2]
[406271598,1771678240847,-1500.0,0.00016268,2]
[406271599,1771678240856,-1000.0,0.00016268,2]
[406271600,1771678240865,-1500.0,0.00016268,2]
[406271601,1771678240877,-169.43,0.000163,2]
[406271602,1771678240887,-325.66480715,0.00016313,2]
[406271603,1771678240897,-151.0,0.00016408,2]
[406271604,1771678240905,-43895.96309889,0.00016411,2]
[406271605,1771678240915,-1680.0,0.00016414,2]
[406271606,1771678240926,-193.0,0.00016416,2]
[406271607,1771678240935,-330.38941593,0.00016416,2]
[406271608,1771678240945,-212.32,0.00016438,30]
[406271609,1771678240954,-25000.0,0.00016438,2]
[406271610,1771678240963,-500.0,0.00016474,2]
[406271611,1771678240972,-200.0,0.00016506,2]
[406271612,1771678240981,-545.49,0.00016514,2]
[406271613,1771678240990,-606.1313001,0.00016634,2]
[406271614,1771678241001,-43895.96309889,0.00016659,2]
[406271615,1771678241011,-219.59788802,0.00016682,2]
[406271616,1771678241020,-150.0,0.00016783,2]
[406271617,1771678241029,-545.49,0.00016788,2]
[406271618,1771678241038,-2000.0,0.00016816,2]
[406271619,1771678241047,-2000.0,0.00016816,2]
[406271620,1771678241057,-3435.57,0.00016826,2]
[406271621,1771678241068,-258.09292124,0.00016858,2]
[406271622,1771678241077,-43895.96309889,0.00016908,2]
[406271623,1771678241086,-510.0,0.00016921,2]
[406271624,1771678241097,-200.0,0.00016983,2]
[406271625,1771678241105,-300.0,0.00017,2]
[406271626,1771678241117,-300.0,0.0001702,2]
[406271627,1771678241126,-200.0,0.00017054,2]
[406271628,1771678241136,-545.49,0.00017062,2]
[406271629,1771678241145,-1500.0,0.00017067,2]
[406271630,1771678241156,-150.04229698,0.00017115,2]
[406271631,1771678241165,-300.0,0.00017115,2]
[406271632,1771678241175,-195.0,0.00017115,2]
[406271633,1771678241186,-600.0,0.00017115,2]
[406271634,1771678241195,-300.0,0.00017115,2]
[406271635,1771678241204,-250.0,0.00017115,2]
[406271636,1771678241213,-2500.0,0.00017115,2]
[406271637,1771678241222,-2500.0,0.00017115,2]
[406271638,1771678241231,-2500.0,0.00017115,2]
[406271639,1771678241240,-2500.0,0.00017115,2]
[406271640,1771678241248,-2500.0,0.00017115,2]
[406271641,1771678241257,-544.42,0.00017152,2]
[406271642,1771678241266,-43895.96309889,0.00017156,2]
[406271643,1771678241275,-263.72,0.00017181,2]
[406271644,1771678241284,-215.11911998,0.00017193,2]
[406271645,1771678241294,-150.0,0.00017264,2]
[406271646,1771678241303,-545.50710921,0.00017336,2]
[406271647,1771678241316,-2331.08124377,0.00017364,2]
[406271648,1771678241325,-2500.0,0.00017364,2]
[406271649,1771678241334,-43895.96309889,0.00017404,2]
[406271650,1771678241343,-2466.07,0.00017442,2]
[406271651,1771678241352,-200.0,0.00017602,2]
[406271652,1771678241361,-43895.96309889,0.00017652,2]
[406271653,1771678241370,-900.0,0.00017685,2]
[406271654,1771678241382,-150.0,0.00017708,2]
[406271655,1771678241392,-169.43,0.00017781,2]
[406271656,1771678241401,-991.7876198,0.00017808,2]
[406271657,1771678241410,-991.7876198,0.00017808,2]
[406271658,1771678241419,-991.7876198,0.00017808,2]
[406271659,1771678241430,-991.7876198,0.00017808,2]
[406271660,1771678241443,-991.7876198,0.00017808,2]
[406271661,1771678241453,-991.7876198,0.00017808,2]
[406271662,1771678241462,-991.7876198,0.00017808,2]
[406271663,1771678241471,-991.7876198,0.00017808,2]
[406271664,1771678241480,-991.7876198,0.00017808,2]
[406271665,1771678241489,-991.7876198,0.00017808,2]
[406271666,1771678241498,-991.7876198,0.00017808,2]
[406271667,1771678241509,-991.7876198,0.00017808,2]
[406271668,1771678241518,-991.7876198,0.00017808,2]
[406271669,1771678241527,-991.7876198,0.00017808,2]
[406271670,1771678241536,-991.7876198,0.00017808,2]
[406271671,1771678241545,-991.7876198,0.00017808,2]
[406271672,1771678241555,-991.7876198,0.00017808,2]
[406271673,1771678241563,-991.7876198,0.00017808,2]
[406271674,1771678241573,-991.7876198,0.00017808,2]
[406271675,1771678241582,-991.7876198,0.00017808,2]
[406271676,1771678241591,-1004.18496504,0.00017808,2]
[406271677,1771678241600,-1004.18496504,0.00017808,2]
[406271678,1771678241609,-1004.18496504,0.00017808,2]
[406271679,1771678241619,-1004.18496504,0.00017808,2]
[406271680,1771678241628,-1004.18496504,0.00017808,2]
[406271681,1771678241637,-1004.18496504,0.00017808,2]
[406271682,1771678241647,-1004.18496504,0.00017808,2]
[406271683,1771678241656,-800.0,0.00017808,2]
[406271684,1771678241666,-800.0,0.000179,6]
[406271685,1771678241674,-700.0,0.000179,6]
[406271686,1771678241683,-43895.96309889,0.000179,2]
[406271687,1771678241692,-3000.0,0.00017912,2]
[406271688,1771678241701,-1000.0,0.00017941,2]
[406271689,1771678241710,-412267.6621988,0.00017942,2]
[406271690,1771678241719,-500.0,0.0001799,2]
[406271691,1771678241728,-233.13055887,0.00017997,2]
[406271692,1771678241737,-525472.50576771,0.00018,2]
[406271693,1771678241758,-1123.42602351,0.00018,2]
[406271707,1771678244392,-824.0,0.00018,2]
[406271719,1771678245252,-330.0,0.00015764,2]
[406271721,1771678245261,-900.62946903,0.00018,2]
[406271723,1771678245272,-161186.97442076,0.00018,2]
[406271725,1771678245283,-602.0,0.00018,2]
[406271728,1771678245307,-881.45672485,0.00018,2]
[406271729,1771678245419,-445.5,0.00018,2]
[406271730,1771678245429,-2783.37,0.00018,2]
[406271731,1771678245476,-793.1136,0.00018,2]
[406271732,1771678245487,-3566.96064989,0.00018,2]
[406271733,1771678245497,-265.60627094,0.00018,2]
[406271734,1771678245508,-896.53402498,0.00018,2]
[406271753,1771678296357,153.525,0.00014527,2]
[406271754,1771678296431,1699.588,0.00014527,2]
[406271755,1771678297364,1500.0,0.000146,5]
[406271756,1771678299462,1646.897,0.000147,5]
[406271757,1771678299487,1353.103,0.000147,5]
[406271758,1771678329191,262.0,0.000147,2]
[406271759,1771678335786,150.0,0.000147,2]
[406271760,1771678385784,249.0,0.000147,2]
[406271761,1771678392099,150.0,0.000147,2]
[406271762,1771678446973,236.0,0.000147,2]
[406271763,1771678453632,150.0,0.000147,2]
[406271764,1771678465879,-291.4111,0.00014718,2]
[406271765,1771678465899,-530.00269202,0.00014723,2]
[406271766,1771678465918,-1834.57069334,0.00014723,2]
[406271767,1771678465938,-4600.0,0.000148,5]
[406271768,1771678465957,-250.0,0.00014812,2]
[406271769,1771678465976,-300.0,0.00014822,2]
[406271770,1771678465995,-150.0,0.00014822,2]
[406271771,1771678466014,-300.0,0.00014822,2]
[406271772,1771678466033,-1000.0,0.00014822,2]
[406271773,1771678466057,-500.0,0.00014822,2]
[406271774,1771678466081,-244.01551464,0.00014822,2]
[406271775,1771678469066,-255.98448536,0.00014822,2]
[406271776,1771678469087,-500.0,0.00014822,2]
[406271777,1771678469108,-500.0,0.00014822,2]
[406271778,1771678469129,-500.0,0.00014822,2]
[406271779,1771678469150,-500.0,0.00014822,2]
[406271780,1771678469171,-500.0,0.00014822,2]
[406271781,1771678469192,-500.0,0.00014822,2]
[406271782,1771678469217,-500.0,0.00014822,2]
[406271783,1771678469240,-500.0,0.00014822,2]
[406271784,1771678469261,-500.0,0.00014822,2]
[406271785,1771678469285,-500.0,0.00014822,2]
[406271786,1771678469310,-500.0,0.00014822,2]
[406271787,1771678469332,-500.0,0.00014822,2]
[406271788,1771678469354,-500.0,0.00014822,2]
[406271789,1771678469376,-500.0,0.00014822,2]
[406271790,1771678469398,-500.0,0.00014822,2]
[406271791,1771678469420,-500.0,0.00014822,2]
[406271792,1771678469442,-500.0,0.00014822,2]
[406271793,1771678469463,-500.0,0.00014822,2]
[406271794,1771678469487,-500.0,0.00014822,2]
[406271795,1771678469511,-244.01551464,0.00014822,2]
[406271796,1771678469559,-255.98448536,0.00014822,2]
[406271797,1771678469580,-500.0,0.00014822,2]
[406271798,1771678469601,-500.0,0.00014822,2]
[406271799,1771678469622,-500.0,0.00014822,2]
[406271800,1771678469643,-500.0,0.00014822,2]
[406271801,1771678469666,-500.0,0.00014822,2]
[406271802,1771678469687,-500.0,0.00014822,2]
[406271803,1771678469708,-500.0,0.00014822,2]
[406271804,1771678469729,-500.0,0.00014822,2]
[406271805,1771678469750,-500.0,0.00014822,2]
[406271806,1771678469771,-500.0,0.00014822,2]
[406271807,1771678469792,-500.0,0.00014822,2]
[406271808,1771678469813,-500.0,0.00014822,2]
[406271809,1771678469836,-500.0,0.00014822,2]
[406271810,1771678469857,-500.0,0.00014822,2]
[406271811,1771678469878,-500.0,0.00014822,2]
[406271812,1771678469898,-1046.8205537,0.00014823,2]
[406271813,1771678469921,-1197.19496094,0.00014823,2]
[406271814,1771678470060,-10000.0,0.00014823,2]
[406271815,1771678470654,-10000.0,0.00014823,2]
[406271816,1771678470881,-10000.0,0.00014823,2]
[406271817,1771678471207,-10000.0,0.00014823,2]
[406271818,1771678471748,-10000.0,0.00014823,2]
[406271819,1771678472250,-10000.0,0.00014823,2]
[406271820,1771678472655,-10000.0,0.00014823,2]
[406271821,1771678473084,-10000.0,0.00014823,2]
[406271822,1771678473503,-10000.0,0.00014823,2]
[406271823,1771678473916,-10000.0,0.00014823,2]
[406271824,1771678474300,-10000.0,0.00014823,2]
[406271825,1771678474683,-10000.0,0.00014823,2]
[406271826,1771678475100,-10000.0,0.00014823,2]
[406271827,1771678475527,-10000.0,0.00014823,2]
[406271828,1771678475905,-10000.0,0.00014823,2]
[406271829,1771678476242,-10000.0,0.00014823,2]
[406271830,1771678476684,-10000.0,0.00014823,2]
[406271831,1771678477025,-10000.0,0.00014823,2]
[406271832,1771678477538,-10000.0,0.00014823,2]
[406271833,1771678477919,-3590.39246998,0.00014723,2]
[406271834,1771678477942,-6409.60753002,0.00014823,2]
[406271835,1771678478325,-10000.0,0.00014823,2]
[406271836,1771678479076,-10000.0,0.00014823,2]
[406271837,1771678479102,-10000.0,0.00014823,2]
[406271838,1771678479584,-10000.0,0.00014823,2]
[406271839,1771678479961,-10000.0,0.00014823,2]
[406271840,1771678480364,-10000.0,0.00014823,2]
[406271841,1771678480824,-10000.0,0.00014823,2]
[406271842,1771678481204,-10000.0,0.00014823,2]
[406271843,1771678482052,-10000.0,0.00014823,2]
[406271844,1771678482789,-10000.0,0.00014823,2]
[406271845,1771678483692,-10000.0,0.00014823,2]
[406271846,1771678484955,-10000.0,0.00014823,2]
[406271847,1771678488748,-10000.0,0.00014823,2]
[406271848,1771678537785,600.0,0.000146,5]
[406271849,1771678538783,-9986.0,0.00014723,2]
[406271850,1771678539877,1200.0,0.000147,5]
[406271851,1771678548297,649.907,0.00013699,2]
[406271852,1771678548321,130.533,0.00013699,2]
[406271853,1771678597959,2393.59498,0.000147,2]
[406271854,1771678665044,1224.37,0.00012173,2]
[406271855,1771678665227,1224.37,0.00012333,2]
[406271856,1771678665425,27.14202,0.00012493,2]
[406271857,1771678665449,1197.22798,0.00012493,2]
[406271858,1771678665629,1224.37,0.00012653,2]
[406271859,1771678665826,1224.37,0.00012813,2]
[406271860,1771678666226,1224.37,0.00012973,2]
[406271861,1771678666443,129.67202,0.00013134,2]
[406271862,1771678666465,1094.69798,0.00013134,2]
[406271863,1771678666637,1224.37,0.00013294,2]
[406271864,1771678666836,1224.37,0.00013454,2]
[406271865,1771678667104,1224.37,0.00013614,2]
[406271866,1771678667297,232.20202,0.00013774,2]
[406271867,1771678667319,992.16798,0.00013774,2]
[406271868,1771678667582,1224.37,0.00013934,2]
[406271869,1771678667783,1224.37,0.00014095,2]
[406271870,1771678667992,1224.37,0.00014255,2]
[406271871,1771678668194,334.73202,0.00014415,2]
[406271872,1771678668216,889.63798,0.00014415,2]
[406271873,1771678668393,1224.37,0.00014575,2]
[406271874,1771678680628,353.335128,0.00014623,2]
[406271875,1771678697658,566.37904995,0.00014623,2]
[406271876,1771678718105,1595.72998666,0.00014623,2]